bitfinex/quotes_SOLUSD_20260314
["timestamp","ask_amount","ask_price","bid_price","bid_amount"]
[1773461037303,0.5,88.435,88.41,3.62600951]
[1773461037509,0.5,88.434,88.4,3.62600951]
[1773461038400,0.5,88.432,88.4,3.62600951]
[1773461041914,0.5,88.43,88.4,3.62600951]
[1773461044907,11.30850739,88.429,88.4,3.62600951]
[1773461045105,0.5,88.428,88.4,3.62600951]
[1773461047904,0.5,88.426,88.4,3.62600951]
[1773461050905,0.5,88.424,88.4,3.62600951]
[1773461053831,11.30927473,88.423,88.4,3.62600951]
[1773461054016,0.5,88.422,88.4,3.62600951]
[1773461056917,0.5,88.42,88.4,3.62600951]
[1773461058334,0.5,88.425,88.401,11.31208922]
[1773461059207,0.5,88.423,88.401,11.31208922]
[1773461061740,0.14216157,88.447,88.401,11.31208922]
[1773461061741,0.5,88.443,88.41,3.62600951]
[1773461061913,0.5,88.443,88.42,3.62600951]
[1773461063538,11.30557215,88.452,88.43,3.62600951]
[1773461063712,11.30557215,88.452,88.44,3.62600951]
[1773461064109,0.7,88.46,88.44,3.62600951]
[1773461069032,0.5,88.456,88.44,3.62600951]
[1773461069236,7.47723837,88.455,88.44,3.62600951]
[1773461070736,11.30531123,88.454,88.44,3.62600951]
[1773461070930,11.30531123,88.454,88.41,3.62600951]
[1773461070931,0.5,88.449,88.41,3.62600951]
[1773461073036,0.5,88.447,88.411,11.31080974]
[1773461074234,0.5,88.445,88.42,3.62600951]
[1773461077843,0.5,88.443,88.42,3.62600951]
[1773461078216,11.30658948,88.444,88.421,11.30953054]
[1773461078421,11.30658948,88.444,88.43,3.62600951]
[1773461078819,11.30604061,88.449,88.43,3.62600951]
[1773461079034,11.80556686,88.452,88.43,3.62600951]
[1773461079240,0.2,88.46,88.44,3.62600951]
[1773461080349,0.2,88.46,88.441,11.30697301]
[1773461084228,0.7,88.46,88.441,11.30697301]
[1773461088232,0.2,88.46,88.441,11.30697301]
[1773461088445,0.7,88.46,88.441,11.30697301]
[1773461088652,0.2,88.46,88.441,11.30697301]
[1773461089532,0.2,88.47,88.441,39.57440553]
[1773461089854,0.2,88.48,88.46,3.62600951]
[1773461090155,0.2,88.48,88.47,3.62600951]
[1773461091151,0.2,88.49,88.471,11.30313888]
[1773461091454,0.5,88.507,88.471,39.56098608]
[1773461091749,0.5,88.507,88.48,3.62600951]
[1773461092338,0.5,88.507,88.471,39.56098608]
[1773461092543,0.5,88.507,88.48,3.62600951]
[1773461093540,0.5,88.507,88.481,11.30186141]
[1773461093853,0.5,88.507,88.459,0.58346261]
[1773461093854,0.5,88.499,88.46,3.61867946]
[1773461095535,0.5,88.489,88.459,0.58346261]
[1773461098160,0.5,88.487,88.459,0.58346261]
[1773461098348,0.49874679,88.479,88.44,3.61867946]
[1773461099537,0.49874679,88.477,88.44,14.92578031]
[1773461100149,0.49874679,88.477,88.441,0.2]
[1773461100355,0.49874679,88.477,88.44,14.92578031]
[1773461101155,0.49874679,88.477,88.432,0.2]
[1773461101156,0.49874679,88.477,88.435,11.30773377]
[1773461101729,3.61867946,88.48,88.432,0.2]
[1773461101730,0.49874679,88.475,88.432,0.2]
[1773461101942,0.49874679,88.469,88.43,3.61867946]
[1773461104456,11.30352217,88.468,88.431,11.30825163]
[1773461104654,0.49874679,88.467,88.431,11.30825163]
[1773461107654,0.49874679,88.465,88.43,3.61867946]
[1773461107862,0.49874679,88.459,88.42,3.61867946]
[1773461108662,0.49874679,88.459,88.418,0.2]
[1773461108842,0.49874679,88.459,88.419,0.2]
[1773461109153,0.49874679,88.449,88.419,0.2]
[1773461109554,0.49874679,88.437,88.413,11.31055387]
[1773461110353,0.49874679,88.437,88.414,0.2]
[1773461111968,0.49874679,88.437,88.412,0.33670855]
[1773461112168,0.49874679,88.435,88.412,0.33670855]
[1773461112748,0.49874679,88.435,88.409,11.31101293]
[1773461113465,0.49874679,88.435,88.409,11.51101293]
[1773461115175,0.49874679,88.433,88.409,11.51101293]
[1773461116773,0.49874679,88.433,88.41,0.2]
[1773461117875,0.49874679,88.431,88.41,0.2]
[1773461119951,0.49874679,88.431,88.411,0.2]
[1773461125762,0.49874679,88.431,88.412,11.5106818]
[1773461126461,0.49874679,88.431,88.413,0.2]
[1773461129069,0.49874679,88.431,88.414,11.31042595]
[1773461129277,0.49874679,88.431,88.415,0.2]
[1773461129675,0.47361935,88.435,88.415,0.2]
[1773461130177,0.47361935,88.448,88.415,0.2]
[1773461131776,0.47361935,88.446,88.417,0.2]
[1773461134970,0.47361935,88.444,88.417,0.2]
[1773461137976,0.47361935,88.442,88.417,0.2]
[1773461138280,0.47361935,88.442,88.419,0.2]
[1773461138474,0.47361935,88.457,88.431,0.2]
[1773461138664,3.61867946,88.47,88.418,39.58469994]
[1773461138665,0.47361935,88.478,88.441,0.2]
[1773461138864,0.47361935,88.478,88.424,2.95506722]
[1773461138865,0.47361935,88.478,88.451,0.2]
[1773461139908,0.47361935,88.476,88.451,0.2]
[1773461140386,0.47361935,88.476,88.453,0.2]
[1773461146382,0.47361935,88.474,88.45,3.61867946]
[1773461146584,0.47361935,88.474,88.444,0.2]
[1773461147989,3.61867946,88.46,88.425,11.30901894]
[1773461148292,0.49778425,88.459,88.425,11.30901894]
[1773461149390,11.30480001,88.458,88.425,11.30901894]
[1773461149572,0.49778425,88.457,88.425,11.30901894]
[1773461149888,0.49778425,88.457,88.425,11.50901894]
[1773461150191,0.49778425,88.457,88.425,11.30901894]
[1773461150486,0.49778425,88.457,88.426,0.2]
[1773461150688,0.49778425,88.457,88.431,0.2]
[1773461152796,0.48398047,88.455,88.431,11.30825163]
[1773461154001,0.48398047,88.455,88.431,11.50825163]
[1773461155497,0.48398047,88.455,88.432,0.2]
[1773461157691,0.48398047,88.455,88.434,0.2]
[1773461158796,0.48398047,88.453,88.43,3.62363377]
[1773461158986,0.48398047,88.453,88.431,11.30825163]
[1773461159791,0.48398047,88.451,88.431,11.30825163]
[1773461160902,0.48398047,88.451,88.427,11.30873008]
[1773461161696,0.48398047,88.451,88.427,11.50873008]
[1773461162001,0.48398047,88.451,88.428,0.2]
[1773461164899,0.48398047,88.451,88.429,11.30850739]
[1773461166306,11.30582249,88.45,88.429,11.30850739]
[1773461166495,0.48398047,88.449,88.429,11.30850739]
[1773461169117,0.48398047,88.447,88.429,11.30850739]
[1773461170410,0.48398047,88.447,88.429,0.2]
[1773461171410,0.48398047,88.447,88.421,11.30953054]
[1773461171707,11.30607814,88.448,88.42,3.62363377]
[1773461171708,0.48398047,88.445,88.424,0.2]
[1773461173608,0.48398047,88.439,88.403,0.2]
[1773461173909,11.30658948,88.444,88.42,3.62363377]
[1773461174207,0.48398047,88.447,88.421,0.2]
[1773461174409,0.48398047,88.463,88.441,0.2]
[1773461175913,0.48398047,88.467,88.45,3.82363377]
[1773461176506,0.48398047,88.467,88.451,0.2]
[1773461179921,11.30377772,88.466,88.451,0.2]
[1773461184911,0.48398047,88.467,88.451,0.2]
[1773461185114,11.30332817,88.47,88.451,0.2]
[1773461185615,0.49454769,88.469,88.451,0.2]
[1773461189013,0.49454769,88.467,88.451,0.2]
[1773461194432,3.62363377,88.49,88.453,0.2]
[1773461194433,0.49454769,88.488,88.453,0.2]
[1773461195310,0.49454769,88.488,88.461,0.2]
[1773461197128,0.49454769,88.486,88.461,0.2]
[1773461201032,0.49454769,88.484,88.461,0.2]
[1773461202015,0.49454769,88.482,88.461,0.2]
[1773461202728,0.49454769,88.482,88.463,0.2]
[1773461204826,0.49454769,88.488,88.471,0.2]
[1773461208936,0.49454769,88.488,88.47,14.92688295]
[1773461208937,0.49454769,88.488,88.473,0.2]
[1773461211120,0.47824424,88.498,88.481,0.2]
[1773461211423,0.47824424,88.502,88.481,0.2]
[1773461212435,0.47824424,88.502,88.483,0.2]
[1773461213334,0.2,88.51,88.491,0.2]
[1773461213724,0.67824424,88.51,88.491,0.2]
[1773461213927,0.2,88.51,88.501,0.2]
[1773461214541,0.2,88.51,88.5,3.61792245]
[1773461215839,0.47824424,88.509,88.48,3.61792245]
[1773461216145,0.47824424,88.509,88.481,11.30186141]
[1773461220646,0.47824424,88.507,88.481,11.30186141]
[1773461221531,0.47824424,88.507,88.482,0.2]
[1773461223843,0.47824424,88.507,88.491,0.2]
[1773461227153,0.09478163,88.507,88.492,0.46265671]
[1773461228131,0.09478163,88.507,88.493,11.76298554]
[1773461229354,0.09478163,88.507,88.49,3.61792245]
[1773461230442,0.09478163,88.507,88.491,11.30058424]
[1773461233158,0.09478163,88.507,88.49,3.61792245]
[1773461234342,0.09478163,88.507,88.485,11.30128156]
[1773461234544,0.09478163,88.507,88.48,4.08057916]
[1773461234853,0.09478163,88.507,88.48,3.61792245]
[1773461235150,0.47824424,88.517,88.49,3.61792245]
[1773461235354,0.47824424,88.517,88.491,0.46265671]
[1773461236558,0.47824424,88.515,88.492,11.30045653]
[1773461237061,0.47824424,88.515,88.49,3.61792245]
[1773461238957,0.47824424,88.513,88.49,4.08057916]
[1773461239154,0.47824424,88.513,88.49,3.61792245]
[1773461240349,11.2979031,88.512,88.488,11.3009052]
[1773461240659,0.47824424,88.511,88.488,11.3009052]
[1773461242541,0.47824424,88.511,88.488,0.49901466]
[1773461246165,0.47824424,88.511,88.489,11.30083965]
[1773461246461,0.47824424,88.511,88.491,0.49901466]
[1773461246661,0.4617103,88.509,88.462,11.30428884]
[1773461246865,0.4617103,88.509,88.468,0.49901466]
[1773461247068,0.4617103,88.509,88.463,0.49901466]
[1773461247969,0.4617103,88.507,88.465,0.49901466]
[1773461248168,0.4617103,88.499,88.464,11.30403327]
[1773461250272,0.4617103,88.497,88.464,11.80304793]
[1773461250451,0.4617103,88.497,88.465,0.49901466]
[1773461253546,3.61792245,88.5,88.46,14.92241943]
[1773461253547,0.4617103,88.495,88.46,14.92241943]
[1773461253753,0.4617103,88.479,88.442,11.30684516]
[1773461253959,0.4617103,88.479,88.443,0.49901466]
[1773461255162,0.4617103,88.479,88.451,0.49901466]
[1773461257072,0.4617103,88.486,88.453,0.49901466]
[1773461257262,0.4617103,88.486,88.452,11.30556686]
[1773461257854,0.4617103,88.486,88.453,0.49901466]
[1773461258071,0.4617103,88.484,88.452,11.30556686]
[1773461258672,0.4617103,88.484,88.452,11.80458152]
[1773461259361,0.4617103,88.482,88.452,11.80458152]
[1773461260368,0.4617103,88.482,88.452,11.30556686]
[1773461261072,0.4617103,88.482,88.452,11.80458152]
[1773461261875,0.4617103,88.479,88.448,0.49901466]
[1773461263975,0.4617103,88.477,88.45,0.49901466]
[1773461267675,0.46973669,88.475,88.45,0.49901466]
[1773461269994,0.46973669,88.473,88.45,0.49901466]
[1773461272983,0.45564544,88.471,88.45,0.49901466]
[1773461273480,0.45564544,88.471,88.452,0.47326249]
[1773461276488,0.45564544,88.469,88.452,0.47326249]
[1773461279378,0.45564544,88.469,88.454,0.47326249]
[1773461280684,0.45564544,88.484,88.454,0.47326249]
[1773461281985,11.30160595,88.483,88.455,11.30518342]
[1773461282175,0.45564544,88.482,88.456,0.47326249]
[1773461282566,3.62191831,88.49,88.455,11.30518342]
[1773461282567,0.45564544,88.491,88.471,0.47326249]
[1773461283589,0.45564544,88.505,88.471,0.47326249]
[1773461283972,11.29892434,88.504,88.472,11.30301112]
[1773461284182,7.2,88.517,88.473,0.47326249]
[1773461284383,0.45564544,88.507,88.481,0.47326249]
[1773461285273,0.45564544,88.514,88.491,0.47326249]
[1773461286481,7.16030127,88.519,88.501,0.47326249]
[1773461288971,0.45564544,88.518,88.502,11.29917967]
[1773461289391,0.45564544,88.518,88.503,0.47326249]
[1773461290771,7.16030127,88.519,88.503,0.47326249]
[1773461290971,7.16030127,88.519,88.504,11.29892434]
[1773461291171,7.16030127,88.519,88.504,11.77218683]
[1773461291671,7.16030127,88.519,88.505,0.47326249]
[1773461294172,2.0,116.0,88.53,3.62191831]
[1773461294173,0.5,88.566,88.53,3.62191831]
[1773461294674,0.5,88.565,88.53,3.62191831]
[1773461294884,0.5,88.565,88.526,7.2]
[1773461295198,0.5,88.565,88.53,3.62191831]
[1773461295691,0.5,88.565,88.531,11.29547841]
[1773461300473,0.5,88.563,88.517,0.03199763]
[1773461300678,0.5,88.529,88.479,11.30211688]
[1773461300879,0.5,88.519,88.48,3.62191831]
[1773461301391,0.5,88.519,88.49,3.62191831]
[1773461302192,0.5,88.519,88.491,11.30058424]
[1773461302389,0.5,88.525,88.5,3.62191831]
[1773461303378,0.5,88.525,88.501,11.29930735]
[1773461305695,0.5,88.544,88.51,3.62191831]
[1773461306796,0.5,88.539,88.5,3.62191831]
[1773461309002,0.5,88.539,88.501,39.54757573]
[1773461310690,0.5,88.538,88.501,39.54757573]
[1773461313610,11.29471294,88.537,88.501,39.54757573]
[1773461313906,0.5,88.536,88.501,39.54757573]
[1773461315000,0.5,88.536,88.498,7.2]
[1773461315001,0.5,88.529,88.498,7.2]
[1773461315306,11.29496809,88.535,88.423,45.23659435]
[1773461315307,0.5,88.519,88.47,31.88008492]
[1773461315500,0.5,88.519,88.48,3.62191831]
[1773461316496,0.5,88.517,88.481,11.30186141]
[1773461323199,0.5,88.515,88.481,11.30186141]
[1773461326092,0.5,88.515,88.481,39.55651495]
[1773461328029,0.5,88.515,88.482,7.2]
[1773461328230,0.5,88.514,88.482,7.2]
[1773461329130,0.5,88.513,88.482,7.2]
[1773461330225,0.5,88.513,88.483,11.30160595]
[1773461333008,0.5,88.513,88.483,39.55562084]
[1773461333211,0.5,88.539,88.5,3.62191831]
[1773461334030,0.5,88.539,88.501,7.2]
[1773461334418,0.5,88.538,88.502,11.29917967]
[1773461338520,11.29471294,88.537,88.502,11.29917967]
[1773461338818,0.5,88.536,88.502,11.29917967]
[1773461339726,0.5,88.536,88.502,39.54712886]
[1773461342828,0.5,88.536,88.51,3.61710464]
[1773461343422,11.29426241,88.541,88.51,3.61710464]
[1773461343621,0.5,88.54,88.51,3.61710464]
[1773461344524,0.5,88.54,88.511,11.29803075]
[1773461355344,0.5,88.538,88.511,11.29803075]
[1773461357042,0.5,88.536,88.511,11.29803075]
[1773461358924,0.5,88.536,88.509,7.2]
[1773461359141,0.5,88.536,88.51,14.91526304]
[1773461370558,0.5,88.536,88.51,11.2981584]
[1773461370935,0.5,88.536,88.51,10.2981584]
[1773461373560,0.5,88.536,88.51,42.16065904]
[1773461375162,0.5,88.536,88.521,11.29675444]
[1773461375542,0.5,88.558,88.53,3.61710464]
[1773461377763,0.5,88.558,88.531,11.29547841]
[1773461378854,0.5,88.558,88.54,3.61710464]
[1773461380360,0.5,88.563,88.54,3.61710464]
[1773461380767,0.5,88.562,88.54,3.61710464]
[1773461384270,0.5,88.562,88.541,11.29420268]
[1773461385067,0.5,88.56,88.535,11.29496809]
[1773461385947,0.5,88.56,88.54,3.61710464]
[1773461386150,0.5,88.558,88.535,11.29496809]
[1773461387062,0.5,88.558,88.534,7.2]
[1773461388555,0.5,88.556,88.534,7.2]
[1773461390278,0.5,88.554,88.535,11.29496809]
[1773461392673,0.5,88.552,88.53,3.61710464]
[1773461393458,0.5,88.552,88.529,7.2]
[1773461395475,0.5,88.552,88.529,18.49572533]
[1773461395662,0.5,88.552,88.53,3.61558089]
[1773461396777,0.5,88.552,88.529,18.49572533]
[1773461397070,0.5,88.552,88.53,3.61558089]
[1773461398273,0.5,88.568,88.531,11.29547841]
[1773461398481,0.5,88.568,88.54,3.61558089]
[1773461398858,0.5,88.568,88.531,11.29547841]
[1773461400983,11.29088712,88.567,88.54,3.61558089]
[1773461401279,0.5,88.566,88.54,3.61558089]
[1773461401486,0.5,88.566,88.531,11.29547841]
[1773461402063,0.5,88.559,88.531,11.29547841]
[1773461403079,11.29203459,88.558,88.531,11.29547841]
[1773461403270,0.5,88.557,88.531,11.29547841]
[1773461403585,0.5,88.557,88.54,3.61558089]
[1773461403884,0.5,88.557,88.531,11.29547841]
[1773461403885,0.5,88.562,88.531,11.29547841]
[1773461405082,11.29165208,88.561,88.531,11.29547841]
[1773461405386,0.5,88.56,88.531,11.29547841]
[1773461407858,0.5,88.558,88.52,3.61558089]
[1773461408061,0.5,88.549,88.513,11.29777546]
[1773461409687,0.5,88.547,88.513,11.29777546]
[1773461411290,0.5,88.545,88.513,11.29777546]
[1773461411966,0.5,88.545,88.508,7.2]
[1773461411967,0.5,88.539,88.508,7.2]
[1773461412169,0.5,88.539,88.51,3.61558089]
[1773461415375,0.5,88.537,88.51,3.61558089]
[1773461417075,11.29484051,88.536,88.51,3.61558089]
[1773461417389,0.5,88.535,88.51,3.61558089]
[1773461418095,0.5,88.535,88.511,11.29803075]
[1773461424197,0.5,88.535,88.52,3.61558089]
[1773461424492,0.5,88.535,88.511,11.29803075]
[1773461425139,11.29509566,88.534,88.511,11.29803075]
[1773461425276,0.5,88.533,88.511,11.29803075]
[1773461450514,0.5,88.531,88.51,18.49810803]
[1773461450716,0.5,88.531,88.51,22.11368892]
[1773461451403,0.5,88.539,88.51,22.11368892]
[1773461452519,0.5,88.539,88.52,3.61558089]
[1773461452720,0.5,88.54,88.521,11.29675444]
[1773461453227,0.5,88.558,88.53,3.61558089]
[1773461453403,0.5,88.558,88.54,3.61558089]
[1773461454501,0.5,88.558,88.54,14.90988359]
[1773461455298,11.29107804,88.566,88.54,14.90988359]
[1773461455498,0.5,88.565,88.54,14.90988359]
[1773461457623,0.5,88.565,88.54,14.90844964]
[1773461461529,0.5,88.563,88.54,14.90844964]
[1773461463232,0.5,88.561,88.54,3.61414694]
[1773461468428,0.5,88.561,88.537,11.29466683]
[1773461468633,0.5,88.561,88.54,3.61414694]
[1773461471024,0.5,88.559,88.537,11.29466683]
[1773461471336,0.5,88.559,88.53,3.61414694]
[1773461472537,0.5,88.557,88.53,14.90965295]
[1773461475637,0.5,88.555,88.53,14.90965295]
[1773461476841,11.29254466,88.554,88.53,14.90965295]
[1773461477137,0.5,88.553,88.53,14.90965295]
[1773461503564,0.5,88.553,88.54,3.61414694]
[1773461503749,0.5,88.553,88.53,43.14866797]
[1773461506466,0.2,88.57,88.54,3.61414694]
[1773461506656,0.2,88.57,88.55,3.61414694]
[1773461506845,0.7,88.57,88.55,3.61414694]
[1773461507046,0.5,88.569,88.55,3.61414694]
[1773461517777,0.5,88.569,88.55,3.61368244]
[1773461518881,0.5,88.567,88.55,3.61368244]
[1773461526973,0.5,88.565,88.54,3.61368244]
[1773461527690,0.5,88.565,88.55,3.61368244]
[1773461533795,0.5,88.565,88.54,3.61368244]
[1773461535204,0.5,88.565,88.55,3.61368244]
[1773461535584,0.2,88.57,88.522,0.2]
[1773461535585,0.5,88.563,88.522,0.2]
[1773461535785,0.5,88.563,88.52,28.24199307]
[1773461535786,0.5,88.563,88.53,3.61368244]
[1773461536097,0.5,88.563,88.531,0.2]
[1773461537097,0.49486766,88.561,88.533,0.2]
[1773461538793,0.49486766,88.561,88.532,11.29535083]
[1773461540999,0.49486766,88.559,88.532,11.49535083]
[1773461541380,0.49486766,88.559,88.533,0.2]
[1773461544807,0.48669588,88.557,88.534,11.29509566]
[1773461553793,0.48669588,88.557,88.534,11.49509566]
[1773461554711,0.48669588,88.557,88.535,0.2]
[1773461555711,0.48669588,88.557,88.534,11.29509566]
[1773461556014,3.81368244,88.57,88.525,0.2]
[1773461556015,0.48669588,88.555,88.525,0.2]
[1773461556194,0.48669588,88.555,88.52,3.61368244]
[1773461556394,0.48669588,88.549,88.517,11.49726493]
[1773461558503,11.29330984,88.548,88.517,11.49726493]
[1773461558701,0.48669588,88.547,88.517,11.49726493]
[1773461559620,0.48669588,88.547,88.517,0.2]
[1773461560508,0.48669588,88.547,88.516,7.2]
[1773461560823,0.48669588,88.539,88.516,7.2]
[1773461561023,0.48669588,88.539,88.504,11.29885002]
[1773461561321,0.48669588,88.519,88.474,0.2]
[1773461561497,0.48669588,88.519,88.48,3.61368244]
[1773461562120,0.48669588,88.519,88.481,0.2]
[1773461564923,7.2,88.538,88.472,0.2]
[1773461564924,0.48669588,88.509,88.472,0.2]
[1773461566426,0.48669588,88.507,88.473,11.30288336]
[1773461566628,0.48669588,88.507,88.473,11.50288336]
[1773461566804,0.48669588,88.507,88.474,0.2]
[1773461568612,0.47581153,88.505,88.476,0.2]
[1773461568799,0.47581153,88.505,88.481,0.2]
[1773461569205,0.47581153,88.505,88.475,11.30262786]
[1773461569206,0.47581153,88.505,88.476,0.2]
[1773461570914,0.47581153,88.503,88.476,0.2]
[1773461572933,0.48465617,88.501,88.472,11.50291064]
[1773461573626,0.48465617,88.501,88.473,0.2]
[1773461574122,0.48465617,88.501,88.457,28.26205959]
[1773461574123,0.48465617,88.489,88.459,0.2]
[1773461576036,0.48465617,88.487,88.459,0.2]
[1773461577034,0.48465617,88.485,88.459,0.2]
[1773461579735,0.48465617,88.483,88.459,0.2]
[1773461584621,0.48465617,88.481,88.461,0.2]
[1773461589633,0.48465617,88.502,88.462,0.2]
[1773461589826,0.48465617,88.499,88.462,0.2]
[1773461592249,0.48465617,88.497,88.464,0.2]
[1773461595328,0.48465617,88.495,88.464,0.2]
[1773461597232,0.48465617,88.493,88.464,0.2]
[1773461599453,0.48465617,88.491,88.464,0.2]
[1773461600636,0.48465617,88.489,88.464,0.2]
[1773461602747,0.45208243,88.487,88.464,0.2]
[1773461606350,11.30122279,88.486,88.464,0.2]
[1773461606539,0.45208243,88.485,88.464,0.2]
[1773461610351,11.30122279,88.486,88.466,0.2]
[1773461611834,0.45208243,88.487,88.46,3.62124174]
[1773461611835,0.45208243,88.487,88.468,0.2]
[1773461613941,11.3008374,88.49,88.47,0.2]
[1773461614259,0.45208243,88.489,88.47,0.2]
[1773461614946,0.45208243,88.488,88.47,0.2]
[1773461619759,0.45208243,88.486,88.47,0.2]
[1773461620556,0.45208243,88.484,88.466,0.2]
[1773461620740,0.45208243,88.499,88.466,0.2]
[1773461622458,0.45208243,88.498,88.468,0.2]
[1773461624363,0.45208243,88.496,88.469,11.5033944]
[1773461624963,0.45208243,88.496,88.47,0.2]
[1773461625766,11.29937635,88.501,88.471,0.2]
[1773461626062,0.49978443,88.5,88.471,0.2]
[1773461626450,0.49978443,88.504,88.473,0.2]
[1773461630068,0.49978443,88.504,88.47,3.62124174]
[1773461630069,0.49978443,88.504,88.475,0.2]
[1773461631663,0.47237064,88.503,88.476,11.30250011]
[1773461631870,0.47237064,88.503,88.477,0.2]
[1773461633360,11.29917967,88.502,88.477,0.2]
[1773461633561,0.47237064,88.501,88.477,0.2]
[1773461634065,0.47237064,88.501,88.476,11.30250011]
[1773461634066,0.47237064,88.501,88.479,0.2]
[1773461635769,0.47237064,88.517,88.481,0.2]
[1773461636153,0.47237064,88.517,88.491,0.2]
[1773461637578,0.47237064,88.515,88.492,0.2]
[1773461639359,0.47237064,88.513,88.492,0.2]
[1773461639783,11.29598879,88.527,88.501,0.2]
[1773461640082,0.47237064,88.535,88.5,3.62124174]
[1773461640083,0.47237064,88.534,88.511,0.2]
[1773461640878,0.47237064,88.529,88.491,0.2]
[1773461641175,0.47237064,88.519,88.491,0.2]
[1773461641377,0.47237064,88.517,88.491,0.2]
[1773461642073,0.47237064,88.517,88.481,0.2]
[1773461642575,0.47237064,88.515,88.482,11.30173368]
[1773461642776,0.47237064,88.515,88.483,0.2]
[1773461645381,11.29764782,88.514,88.483,0.2]
[1773461645687,0.47237064,88.513,88.483,0.2]
[1773461645987,0.47237064,88.513,88.485,0.2]
[1773461647373,11.2979031,88.512,88.485,0.2]
[1773461647579,0.47237064,88.511,88.485,0.2]
[1773461651185,0.47237064,88.509,88.486,0.2]
[1773461653182,0.47237064,88.507,88.486,0.2]
[1773461654185,0.47237064,88.507,88.488,0.2]
[1773461654385,0.47237064,88.507,88.487,11.30109507]
[1773461654386,0.47237064,88.507,88.491,0.2]
[1773461659698,0.47237064,88.505,88.471,0.2]
[1773461663478,0.49952004,88.503,88.473,0.2]
[1773461673019,0.49952004,88.501,88.472,11.30301112]
[1773461673687,0.49952004,88.501,88.472,11.50301112]
[1773461673887,0.49952004,88.501,88.473,0.2]
[1773461675416,0.49952004,88.501,88.481,0.2]
[1773461677510,11.79806241,88.507,88.483,0.2]
[1773461677808,0.49952004,88.506,88.483,0.2]
[1773461678887,0.49952004,88.504,88.483,0.2]
[1773461680209,0.49952004,88.508,88.485,0.2]
[1773461681203,0.49952004,88.508,88.487,0.2]
[1773461681908,0.49952004,88.528,88.501,0.2]
[1773461682113,0.49952004,88.528,88.51,3.8193129]
[1773461682407,0.49952004,88.528,88.51,0.2]
[1773461685630,0.49952004,88.539,88.51,3.6193129]
[1773461685821,0.49952004,88.519,88.481,0.2]
[1773461686915,0.49952004,88.519,88.491,0.2]
[1773461687843,0.49952004,88.519,88.49,3.6193129]
[1773461687844,0.48722097,88.517,88.493,0.2]
[1773461691304,11.29739256,88.516,88.493,0.2]
[1773461691622,0.48096045,88.515,88.493,0.2]
[1773461692418,0.48096045,88.515,88.492,11.30045653]
[1773461692919,0.48096045,88.515,88.487,0.2]
[1773461693724,0.48096045,88.513,88.487,0.2]
[1773461694417,0.48096045,88.513,88.481,11.50186141]
[1773461694620,0.48096045,88.513,88.481,11.30186141]
[1773461694818,0.48096045,88.513,88.482,0.2]
[1773461695620,0.48096045,88.511,88.482,0.2]
[1773461695918,0.48096045,88.517,88.484,0.2]
[1773461698232,0.48096045,88.515,88.486,0.2]
[1773461700313,0.48096045,88.515,88.488,0.2]
[1773461700715,0.48096045,88.513,88.488,0.2]
[1773461701711,0.48096045,88.526,88.491,0.2]
[1773461704511,39.52613806,88.549,88.511,0.2]
[1773461704512,0.48096045,88.549,88.511,0.2]
[1773461704833,0.48096045,88.549,88.492,39.55159787]
[1773461704834,0.48096045,88.548,88.52,3.61838492]
[1773461705015,0.48096045,88.548,88.519,0.2]
[1773461705731,0.48096045,88.548,88.493,0.2]
[1773461705914,0.48096045,88.548,88.511,0.2]
[1773461707326,0.48096045,88.546,88.513,0.2]
[1773461708832,0.48096045,88.546,88.512,11.2979031]
[1773461709245,0.48096045,88.539,88.5,3.61838492]
[1773461709432,0.48096045,88.539,88.448,33.89]
[1773461709433,0.48096045,88.509,88.46,0.2]
[1773461709739,0.48096045,88.489,88.461,0.2]
[1773461710049,0.48096045,88.489,88.444,7.2]
[1773461710216,0.48096045,88.489,88.41,0.2]
[1773461710217,0.48096045,88.479,88.445,11.30646164]
[1773461710418,0.48096045,88.479,88.45,3.61838492]
[1773461710718,7.2,88.5,88.445,11.30646164]
[1773461710719,3.61838492,88.5,88.461,0.47425725]